Cogmind - Beta 14 @@@ ROGUE MODE // 2024.11.14 @ 01:04:28 Player: Serule Result: Destroyed by Executioner with Helical Railgun Performance ------------- Evolutions (6) 3000 Regions Visited (10) 2000 Robots Destroyed (67) 335 Value Destroyed (1873) 1873 Prototype IDs (5) 100 Alien Tech Used (0) 0 Bonus (3244) 3244 TOTAL SCORE: 10552 Bonus ------- High Alert Combat Kills 29 Entered DSFs 500 Met Warlord at Base 500 MAIN.C Attacked Warlord 500 Warlord Defense Kills 1762 Friendly Fire -47 Cogmind --------- Core Integrity 0/1150 Matter 237/300 Energy 98/100 System Corruption 1% Temperature Cool (12) Movement Core (50) Location -4/Warlord Parts ------- > --- POWER (2) -------- (None) > --- PROPULSION (5) --- (None) > --- UTILITY (9) ------ (None) > --- WEAPON (3) ------- (None) > --- INVENTORY (5) ---- Improved Titanium Leg Flexi-carbon Leg Biometal Leg Backup Laser III Peak State ------------ > --- POWER ------------ Backup Power III Neutrino Core > --- PROPULSION ------- Flexi-carbon Leg Flexi-carbon Leg Armored Leg Biometal Leg Biometal Leg > --- UTILITY ---------- Advanced Heat Sink Advanced Heat Sink Improved Targeting Computer Advanced Transmission Jammer Hardened Medium Armor Plating Hardened Medium Armor Plating Improved Medium Armor Plating Improved Focal Shield Advanced Thermal Shield > --- WEAPON ----------- Particle Gun Backup Laser III RU-N14's Throwing Claymores v3 > --- INVENTORY -------- Backup Power III Improved Titanium Leg Flexi-carbon Leg Biometal Leg Backup Laser III [Rating: 98] Favorites ----------- Power Light Ion Engine Engine Light Ion Engine Power Core Neutrino Core Propulsion Aluminum Leg Leg Aluminum Leg Hover Unit Gravmag System Flight Unit Flight Unit Utility Advanced Heat Sink Device Advanced Heat Sink Storage Small Storage Unit Processor Visual Processing Unit Hackware Hacking Suite Protection Hardened Medium Armor Plating Weapon Assault Rifle Energy Gun Particle Gun Ballistic Gun Assault Rifle Launcher Heavy Rocket Launcher Special Weapon RU-N14's Throwing Claymores v3 Build | -11 -10 -9 -8 -7 -6 -6 -5 -4 -4 -4 ------- Run | Yrd Mat Mat Mat Fac Fac DSF Fac Fac Upp War Slots Evolved 12 | . . 2 2 2 2 . 2 2 . . Power 1 | . . . . . 1 . . . . . Propulsion 3 | . . 1 1 . . . . 1 . . Utility 7 | . . 1 1 2 1 . 1 1 . . Weapon 1 | . . . . . . . 1 . . . Parts Attached 92 | 7 6 28 17 1 . 2 2 . . 29 Power 9 | 1 . 2 2 1 . 1 . . . 2 Engine 6 | 1 . 2 1 1 . . . . . 1 Core 3 | . . . 1 . . 1 . . . 1 Reactor . | . . . . . . . . . . . Propulsion 37 | 2 2 11 12 . . 1 1 . . 8 Treads . | . . . . . . . . . . . Leg 23 | 2 2 9 2 . . 1 . . . 7 Wheel . | . . . . . . . . . . . Hover 6 | . . . 5 . . . . . . 1 Flight 8 | . . 2 5 . . . 1 . . . Utility 23 | 2 2 3 1 . . . 1 . . 14 Device 13 | 1 1 1 . . . . . . . 10 Storage 3 | 1 1 1 . . . . . . . . Processor 2 | . . 1 . . . . . . . 1 Hackware 1 | . . . 1 . . . . . . . Protection 4 | . . . . . . . 1 . . 3 Artifact . | . . . . . . . . . . . Weapon 23 | 2 2 12 2 . . . . . . 5 Energy Gun 7 | 1 1 2 1 . . . . . . 2 Energy Cannon . | . . . . . . . . . . . Ballistic Gun 6 | 1 . 5 . . . . . . . . Ballistic Cannon . | . . . . . . . . . . . Launcher 8 | . 1 5 1 . . . . . . 1 Special Weapon 2 | . . . . . . . . . . 2 Impact Weapon . | . . . . . . . . . . . Slashing Weapon . | . . . . . . . . . . . Piercing Weapon . | . . . . . . . . . . . Special Melee Weapon . | . . . . . . . . . . . Unidentified Prototypes 3 | . . . 2 . . . . . . 1 Parts Lost 40 | . . 4 13 1 . 2 3 . 1 16 Power 5 | . . . 1 . . . 1 . . 3 Propulsion 19 | . . 2 9 1 . . 1 . 1 5 Utility 10 | . . 1 1 . . 2 1 . . 5 Weapon 6 | . . 1 2 . . . . . . 3 Highest Loss Streak 15 | . . 2 13 1 . 2 3 . 1 15 To Critical Strikes . | . . . . . . . . . . . Average Slot Usage (%) 71 | . 100 92 79 31 20 18 10 10 5 77 Engine 6 | . 14 11 1 5 . . . . . 4 Core 1 | . . . 6 . . . 1 . . 3 Leg 17 | . 28 25 4 . . . 2 . . 19 Hover 1 | . . . 17 . . . . . . 1 Flight 1 | . . 4 5 2 . . . 5 . . Device 12 | . 14 9 6 . . . . . . 20 Storage 5 | . 14 11 9 7 6 4 . . . . Processor 4 | . . 10 9 7 6 4 . . . 3 Hackware 2 | . . . 9 7 6 6 5 5 5 2 Protection 2 | . . . . . . . . . . 7 Energy Gun 5 | . 14 2 2 . . . . . . 6 Ballistic Gun 3 | . 9 11 1 . . . . . . . Launcher 3 | . 4 5 7 . . . . . . 2 Peak Build Rating 98 | 9 10 15 35 14 8 13 16 17 17 98 Average Rating 29 | 7 8 12 23 11 8 8 8 16 5 71 On Entrance 9 | . 9 8 14 10 8 8 13 16 17 5 Naked Turns 5 | . . . . . . . . . . 5 Heaviest Build 67 | 13 19 22 24 10 5 7 7 . . 67 Greatest Support 112 | 20 20 33 36 4 3 20 20 13 13 112 Greatest Overweight (x) 4 | . . 2 4 3 1 1 . . . 1 Average Overweight (x) . | . . . . 2 1 . . . . . Largest Inventory Capacity 10 | 8 10 10 8 8 8 8 5 5 5 5 Average Capacity 7 | 7 9 9 8 8 8 7 5 5 5 5 Most Carried 10 | 6 10 10 8 8 8 8 5 5 5 5 Average Carried 6 | 4 9 8 7 7 8 7 4 4 5 4 Final Capacity 10 | 8 10 8 8 8 8 5 5 5 5 5 Final Carried 10 | 6 10 8 7 8 8 4 4 5 5 4 Class Distribution -------------------- 69% | Mutant 13% | Scavenger-Tank 9% | Scavenger-Gunner 8% | Scavenger-Mutant Dominant Class ---------------- Mutant | -10/Materials Mutant | -9/Materials Mutant | -8/Materials Mutant | -7/Factory Mutant | -6/Factory Mutant | -6/DSF Mutant | -5/Factory Mutant | -4/Factory Mutant | -4/Upper Caves Scavenger-Tank | -4/Warlord Resources | -11 -10 -9 -8 -7 -6 -6 -5 -4 -4 -4 ----------- Run | Yrd Mat Mat Mat Fac Fac DSF Fac Fac Upp War Matter Collected 1884 | 360 358 303 210 . . 4 . . 33 616 Remotely . | . . . . . . . . . . . Salvage Created 1532 | 329 293 371 117 . . . . . . 422 Parts 125 | 38 33 21 19 . . . . . . 14 Haulers Intercepted 1 | . . . 1 . . . . . . . Recyclers Shooed 1 | 1 . . . . . . . . . . Parts Field Recycled . | . . . . . . . . . . . Retrieved Matter . | . . . . . . . . . . . Parts Self-Destructed 1 | . . . . . . . . . 1 . Prevented . | . . . . . . . . . . . Kills | -11 -10 -9 -8 -7 -6 -6 -5 -4 -4 -4 ------- Run | Yrd Mat Mat Mat Fac Fac DSF Fac Fac Upp War Combat Hostiles Destroyed 43 | . 12 11 6 . . . . . . 14 Guns 14 | . 5 8 1 . . . . . . . Cannons 3 | . . . . . . . . . . 3 AOE 26 | . 7 3 5 . . . . . . 11 Classes Destroyed 14 | 3 5 2 2 . . . . . . 2 Worker 5 | 4 . . 1 . . . . . . . Builder 1 | . 1 . . . . . . . . . Tunneler 10 | 9 1 . . . . . . . . . Hauler 1 | . . . 1 . . . . . . . Recycler 1 | 1 . . . . . . . . . . Operator 3 | . 1 1 1 . . . . . . . Watcher 3 | . 3 . . . . . . . . . Swarmer 13 | . 9 2 . . . . . . . 2 Cutter 3 | . . . 3 . . . . . . . Grunt 18 | . 3 4 2 . . . . . . 9 Duelist 1 | . . 1 . . . . . . . . Protector 1 | . . . . . . . . . . 1 Sentry 5 | . . 4 1 . . . . . . . Hunter 2 | . . . . . . . . . . 2 Best Kill Streak 8 | 3 5 4 8 . . . . . . 7 Combat Bots Only 7 | . 5 4 6 . . . . . . 7 Max Kills in Single Turn 3 | 1 2 2 2 . . . . . . 3 Gunslinging . | . . . . . . . . . . . Exploded 2 | . 2 1 2 . . . . . . 2 Melee . | . . . . . . . . . . . Uniques/NPCs Destroyed . | . . . . . . . . . . . Combat | -11 -10 -9 -8 -7 -6 -6 -5 -4 -4 -4 -------- Run | Yrd Mat Mat Mat Fac Fac DSF Fac Fac Upp War Hostile Shots Fired 733 | . 35 85 103 23 . 12 99 13 20 343 Missed 288 | . 17 27 40 7 . 2 37 7 7 144 Damage Taken 7666 | . 193 692 1186 301 . 412 1139 111 235 3397 Core 3027 | . 73 106 305 283 . 371 721 26 200 942 Absorbed by Shields . | . . . . . . . . . . . Ignored by Resistances 732 | . . . . . . . . . . 732 Regen/Repaired (Parts) 7 | . . . . . . . . . . 7 Core Remaining (%) 61 | 100 70 73 44 59 . 56 27 . . . Volleys Fired 134 | 30 27 35 13 . . . . . . 29 Largest 3 | 2 2 2 2 . . . . . . 3 Hottest 144 | 70 70 95 89 . . . . . . 144 Shots Fired 212 | 60 41 52 17 . . . . . . 42 Gun 156 | 60 27 44 5 . . . . . . 20 Cannon . | . . . . . . . . . . . Launcher 49 | . 14 8 12 . . . . . . 15 Special 7 | . . . . . . . . . . 7 Kinetic 75 | 30 13 31 1 . . . . . . . Thermal 56 | 30 2 4 . . . . . . . 20 Explosive 56 | . 14 8 12 . . . . . . 22 Electromagnetic 25 | . 12 9 4 . . . . . . . Robot Hit Streak 10 | 7 10 10 9 . . . . . . 9 Robot Miss Streak 3 | 3 3 3 3 . . . . . . 2 Penetration Max . | . . . . . . . . . . . Secondary Targets 1 | . . 1 . . . . . . . . Max Gunslinging Chain 1 | . . 1 . . . . . . . . Shots Hit Robots 130 | 38 21 39 11 . . . . . . 21 Core Hits 133 | 15 24 20 18 . . . . . . 56 Critical Kills 1 | 1 . . . . . . . . . . Critical Parts Destroyed . | . . . . . . . . . . . Critical Strikes 7 | 4 . . . . . . . . . 3 Burn 4 | 3 . . . . . . . . . 1 Destroy 1 | 1 . . . . . . . . . . Sever 2 | . . . . . . . . . . 2 Melee Attacks . | . . . . . . . . . . . Impact . | . . . . . . . . . . . Slashing . | . . . . . . . . . . . Piercing . | . . . . . . . . . . . Sneak Attacks . | . . . . . . . . . . . Combat Hostiles . | . . . . . . . . . . . Follow-up Attacks . | . . . . . . . . . . . Damage Inflicted 6595 | 491 774 993 730 . . . . . . 3607 Guns 1560 | 491 211 637 47 . . . . . . 174 Cannons . | . . . . . . . . . . . Explosions 4714 | . 560 336 683 . . . . . . 3135 Melee . | . . . . . . . . . . . Ramming 23 | . 3 20 . . . . . . . . Kinetic 821 | 241 93 487 . . . . . . . . Thermal 512 | 250 12 76 . . . . . . . 174 Explosive 4675 | . 560 297 683 . . . . . . 3135 Electromagnetic 266 | . 106 113 47 . . . . . . . Impact . | . . . . . . . . . . . Slashing 298 | . . . . . . . . . . 298 Piercing . | . . . . . . . . . . . Highest Corruption 1 | . . . . . . . 1 . . 1 Average Corruption 1 | . . . . . . . 1 . . 1 Corruption Purged . | . . . . . . . . . . . Corruption Blocked . | . . . . . . . . . . . Overload Shots . | . . . . . . . . . . . Overflow Damage 98 | . 26 5 . . . . . . . 67 Projectiles . | . . . . . . . . . . . Explosions 98 | . 26 5 . . . . . . . 67 Melee . | . . . . . . . . . . . Knockbacks . | . . . . . . . . . . . Impact . | . . . . . . . . . . . Kinetic . | . . . . . . . . . . . Secondary . | . . . . . . . . . . . Self-Inflicted Damage 216 | . 34 50 122 . . . . . . 10 Shots 7 | . 1 1 4 . . . . . . 1 Rammed 3 | . . 3 . . . . . . . . Targets Rammed 6 | . 2 4 . . . . . . . . Kicked 3 | . 2 1 . . . . . . . . Crushed . | . . . . . . . . . . . Highest Temperature 131 | 47 42 131 110 . . . 5 . . 45 Average Temperature 27 | 14 20 31 67 . . . 5 . . 13 Received Heat Transfer 1484 | . 42 237 216 . . 27 162 18 30 752 Siege Activations . | . . . . . . . . . . . Robots Corrupted . | . . . . . . . . . . . Combat Hostiles . | . . . . . . . . . . . Parts Fried . | . . . . . . . . . . . Impact Corruptions . | . . . . . . . . . . . Robots Melted . | . . . . . . . . . . . Combat Hostiles . | . . . . . . . . . . . Parts Melted 1 | 1 . . . . . . . . . . Heat Transferred 1643 | 962 37 161 . . . . . . . 483 Parts Sabotaged . | . . . . . . . . . . . Parts Stolen . | . . . . . . . . . . . Parts Stripped . | . . . . . . . . . . . Power Chain Reactions 1 | . . 1 . . . . . . . . Alert | -11 -10 -9 -8 -7 -6 -6 -5 -4 -4 -4 ------- Run | Yrd Mat Mat Mat Fac Fac DSF Fac Fac Upp War Peak Influence 467 | 70 438 467 392 175 85 74 380 351 . . Initial 186 | . . 184 136 155 85 59 35 186 . . Average 171 | 34 120 316 249 150 85 65 160 274 . . Maximum Alert Level 2 | . 2 2 1 . . . 1 1 . . Low Security (%) 64 | 100 87 5 51 100 100 100 62 12 . . Level 1 31 | . 8 77 48 . . . 37 87 . . Level 2 4 | . 3 16 . . . . . . . . Level 3 . | . . . . . . . . . . . Level 4 . | . . . . . . . . . . . Level 5 . | . . . . . . . . . . . High Security . | . . . . . . . . . . . Max Security . | . . . . . . . . . . . Squads Dispatched 7 | . 2 . 1 . . 1 3 . . . Investigation 1 | . 1 . . . . . . . . . Extermination 1 | . . . . . . . 1 . . . Reinforcement 5 | . 1 . 1 . . 1 2 . . . Assault . | . . . . . . . . . . . Garrison . | . . . . . . . . . . . Intercept . | . . . . . . . . . . . Searches Triggered . | . . . . . . . . . . . Construction Impeded . | . . . . . . . . . . . Haulers Reinforced . | . . . . . . . . . . . Active Scanning Responses . | . . . . . . . . . . . Cargo Convoy Interrupts . | . . . . . . . . . . . Stealth | -11 -10 -9 -8 -7 -6 -6 -5 -4 -4 -4 --------- Run | Yrd Mat Mat Mat Fac Fac DSF Fac Fac Upp War Distress Signals 3 | . . . 1 . . . . . . 2 Communications Jammed 7 | . . . . . . . . . . 7 Distress Signals 7 | . . . . . . . . . . 7 Times Spotted 155 | . 19 17 13 3 . 3 23 9 3 65 Peak Tracking Total 25 | . 5 6 9 3 . 2 13 5 3 25 Tactical Retreats 20 | . 2 . 1 2 . 2 6 3 . 4 Traps | -11 -10 -9 -8 -7 -6 -6 -5 -4 -4 -4 ------- Run | Yrd Mat Mat Mat Fac Fac DSF Fac Fac Upp War Traps Triggered 10 | . 1 4 1 1 . 2 1 . . . Indirectly . | . . . . . . . . . . . Trap Hack Attempts . | . . . . . . . . . . . Triggered . | . . . . . . . . . . . Disarmed . | . . . . . . . . . . . Reprogrammed . | . . . . . . . . . . . Reused . | . . . . . . . . . . . Traps Extracted . | . . . . . . . . . . . Installed . | . . . . . . . . . . . Triggered 21 | . . . . . . . . . . 21 Machines | -11 -10 -9 -8 -7 -6 -6 -5 -4 -4 -4 ---------- Run | Yrd Mat Mat Mat Fac Fac DSF Fac Fac Upp War Machines Disabled 3 | . 1 . 2 . . . . . . . Max in Single Turn 1 | . 1 . 1 . . . . . . . Machines Repaired . | . . . . . . . . . . . Machines Dismantled . | . . . . . . . . . . . Machines Sabotaged . | . . . . . . . . . . . Overloaded Fab Kills . | . . . . . . . . . . . Hacking | -11 -10 -9 -8 -7 -6 -6 -5 -4 -4 -4 --------- Run | Yrd Mat Mat Mat Fac Fac DSF Fac Fac Upp War Machines Accessed 9 | . 2 4 1 . 1 . 1 . . . Terminals 9 | . 2 4 1 . 1 . 1 . . . Fabricators . | . . . . . . . . . . . Repair Stations . | . . . . . . . . . . . Recycling Units . | . . . . . . . . . . . Scanalyzers . | . . . . . . . . . . . Garrison Access . | . . . . . . . . . . . Total Hacks 17 | . 4 7 4 . 1 . 1 . . . Successful 9 | . 2 2 3 . 1 . 1 . . . Failed 8 | . 2 5 1 . . . . . . . Catastrophic 2 | . 2 . . . . . . . . . Database Lockouts . | . . . . . . . . . . . Manual 4 | . 2 2 . . . . . . . . Terminals 17 | . 4 7 4 . 1 . 1 . . . Fabricators . | . . . . . . . . . . . Repair Stations . | . . . . . . . . . . . Recycling Units . | . . . . . . . . . . . Scanalyzers . | . . . . . . . . . . . Garrison Access . | . . . . . . . . . . . Terminal Hacks 9 | . 2 2 3 . 1 . 1 . . . Record 1 | . . . 1 . . . . . . . Prototype ID Bank 1 | . 1 . . . . . . . . . Open DSF 2 | . . . . . 1 . 1 . . . Alert Level 1 | . . . 1 . . . . . . . Locate Traps 1 | . . 1 . . . . . . . . Recall Investigation 1 | . 1 . . . . . . . . . Zone Layout 2 | . . 1 1 . . . . . . . Fabricator Hacks . | . . . . . . . . . . . Repair Station Hacks . | . . . . . . . . . . . Recycling Unit Hacks . | . . . . . . . . . . . Scanalyzer . | . . . . . . . . . . . Garrison Access Hacks . | . . . . . . . . . . . Unauthorized Hacks . | . . . . . . . . . . . Terminals . | . . . . . . . . . . . Fabricators . | . . . . . . . . . . . Repair Stations . | . . . . . . . . . . . Recycling Units . | . . . . . . . . . . . Scanalyzers . | . . . . . . . . . . . Garrison Access . | . . . . . . . . . . . Data Cores Recovered 3 | . 1 1 1 . . . . . . . Used 2 | . 1 1 . . . . . . . . Hacking Detections 6 | . 2 3 . . 1 . . . . . Full Trace Events . | . . . . . . . . . . . Feedback Events . | . . . . . . . . . . . Feedback Blocked . | . . . . . . . . . . . Robot Schematics Acquired . | . . . . . . . . . . . Robots Built . | . . . . . . . . . . . Authchips . | . . . . . . . . . . . Time . | . . . . . . . . . . . Total Robot Build Rating . | . . . . . . . . . . . Part Schematics Acquired . | . . . . . . . . . . . Parts Built . | . . . . . . . . . . . Authchips . | . . . . . . . . . . . Time . | . . . . . . . . . . . Total Part Build Rating . | . . . . . . . . . . . Parts Repaired . | . . . . . . . . . . . Time . | . . . . . . . . . . . Parts Recycled . | . . . . . . . . . . . Recycled Matter . | . . . . . . . . . . . Retrieved Matter . | . . . . . . . . . . . Retrieved Components . | . . . . . . . . . . . Parts Scanalyzed . | . . . . . . . . . . . Part Schematics Acquired . | . . . . . . . . . . . Parts Damaged . | . . . . . . . . . . . Bothacking | -11 -10 -9 -8 -7 -6 -6 -5 -4 -4 -4 ------------ Run | Yrd Mat Mat Mat Fac Fac DSF Fac Fac Upp War Used RIF Installer . | . . . . . . . . . . . Robots Hacked . | . . . . . . . . . . . Non-combat . | . . . . . . . . . . . Combat . | . . . . . . . . . . . Robot Hacks Applied . | . . . . . . . . . . . Relay Couplers Released . | . . . . . . . . . . . Fabnet Peak Effective % . | . . . . . . . . . . . Robots Rewired . | . . . . . . . . . . . Allies Hacked . | . . . . . . . . . . . Hacks Repelled . | . . . . . . . . . . . Allies | -11 -10 -9 -8 -7 -6 -6 -5 -4 -4 -4 -------- Run | Yrd Mat Mat Mat Fac Fac DSF Fac Fac Upp War Total Allies . | . . . . . . . . . . . Largest Group . | . . . . . . . . . . . Highest-Rated Group . | . . . . . . . . . . . Highest-Rated Ally . | . . . . . . . . . . . Total Orders . | . . . . . . . . . . . Ally Attacks . | . . . . . . . . . . . Total Damage . | . . . . . . . . . . . Kills . | . . . . . . . . . . . Allies Corrupted . | . . . . . . . . . . . Allies Melted . | . . . . . . . . . . . Intel | -11 -10 -9 -8 -7 -6 -6 -5 -4 -4 -4 ------- Run | Yrd Mat Mat Mat Fac Fac DSF Fac Fac Upp War Robot Analysis Total . | . . . . . . . . . . . Derelict Logs Recovered 2 | . . . . . . . . . 2 . Drone Launches . | . . . . . . . . . . . Drone Recoveries . | . . . . . . . . . . . Exploration | -11 -10 -9 -8 -7 -6 -6 -5 -4 -4 -4 ------------- Run | Yrd Mat Mat Mat Fac Fac DSF Fac Fac Upp War Turns Passed 4017 | 409 784 587 243 203 3 115 279 123 43 1228 Spaces Moved 3022 | 256 435 327 238 139 4 81 412 300 87 743 Core 694 | 9 . . 13 94 4 71 301 . 82 120 Treads . | . . . . . . . . . . . Legs 1596 | 247 435 270 25 . . 10 87 . . 522 Wheels . | . . . . . . . . . . . Hover 270 | . . . 169 . . . . . . 101 Flight 462 | . . 57 31 45 . . 24 300 5 . Fastest Speed 40 | 50 120 120 48 100 100 50 40 40 40 50 Average Speed 94 | 117 120 126 74 139 100 88 66 40 49 99 Slowest Speed 260 | 120 120 260 205 200 100 130 130 40 50 190 Overloaded Moves 45 | . . . . 45 . . . . . . Propulsion Burnouts 1 | . . . . 1 . . . . . . Robots Hopped 3 | . . . . . . . . 3 . . Cave-ins Triggered . | . . . . . . . . . . . Exploration Rate (%) 35 | 9 62 44 29 4 . 86 20 9 26 67 Regions Visited 10 Branch Regions 2 Pre-discovered Areas . | . . . . . . . . . . . Known Exits Taken 1 | . . . . . 1 . . . . . Unknown Exits Taken 8 | 1 1 1 1 1 . . 1 1 1 . Scrap Searched 1 | . . . . . . . . . 1 . Spaces Dug 28 | . 14 6 . . . . . . . 8 Terrain Destroyed 415 | . 95 56 90 . . . . . . 174 Melee . | . . . . . . . . . . . Projectile . | . . . . . . . . . . . AOE 415 | . 95 56 90 . . . . . . 174 Terrain Rammed . | . . . . . . . . . . . Walls Destroyed . | . . . . . . . . . . . Machines Disabled . | . . . . . . . . . . . Actions | -11 -10 -9 -8 -7 -6 -6 -5 -4 -4 -4 --------- Run | Yrd Mat Mat Mat Fac Fac DSF Fac Fac Upp War Total 3948 | 302 657 445 287 148 3 123 416 299 86 1182 Wait 591 | . 175 30 2 3 . 11 2 . . 368 Move 3006 | 255 434 326 237 138 3 80 411 293 86 743 Hop 3 | . . . . . . . . 3 . . Pick Up 46 | 10 7 10 7 4 . . 1 2 . 5 Fast Attach 42 | 3 1 10 10 . . 1 1 . . 16 Attach 23 | 4 . 6 3 1 . 1 1 . . 7 Detach 1 | . . 1 . . . . . . . . Swap 27 | . 5 12 4 . . . . . . 6 Drop 39 | . 6 11 11 2 . . . 1 . 8 Fire 134 | 30 27 35 13 . . . . . . 29 Melee . | . . . . . . . . . . . Ram 3 | . . 3 . . . . . . . . Kick 3 | . 2 1 . . . . . . . . Crush . | . . . . . . . . . . . Escape Stasis 30 | . . . . . . 30 . . . . Rewire . | . . . . . . . . . . . Trap . | . . . . . . . . . . . Miscellaneous . | . . . . . . . . . . . Route ------- -11/Scrapyard -10/Materials (discovered 2 exits: *Mat x2) -9/Materials -8/Materials -7/Factory -6/Factory -6/DSF -5/Factory -4/Factory -4/Upper Caves -4/Warlord History --------- Turn | Location | Event 19 | -11/Scrapyard | Discovered new exit (range 16) 410 | -11/Scrapyard | Entered Materials 411 | -10/Materials | Build established: Mutant 1004 | -10/Materials | Discovered new exit (range 15) 1097 | -10/Materials | Discovered new exit (range 8) 1194 | -10/Materials | Entered another Materials area 1194 | -9/Materials | Evolved 2 slots: Propulsion x1, Utility x1 1732 | -9/Materials | Discovered new exit (range 18) 1781 | -9/Materials | Entered another Materials area 1781 | -8/Materials | Evolved 2 slots: Propulsion x1, Utility x1 2011 | -8/Materials | Discovered new exit (range 18) 2012 | -8/Materials | Core integrity fell below 50% 2024 | -8/Materials | Entered Factory 2024 | -7/Factory | Evolved 2 slots: Utility x2 2038 | -7/Factory | Lost 13 parts (1p9n1u2w) 2100 | -7/Factory | Discovered new exit (range 6) 2227 | -7/Factory | Entered another Factory area 2227 | -6/Factory | Evolved 2 slots: Power x1, Utility x1 2229 | -6/Factory | Identified exit to DSF 2230 | -6/Factory | Entered DSF 2255 | -6/DSF | Additional patrols routed to DSF 2328 | -6/DSF | Discovered new exit (range 15) 2345 | -6/DSF | Entered Factory 2345 | -5/Factory | Evolved 2 slots: Utility x1, Weapon x1 2517 | -5/Factory | Lost 3 parts (1p1n1u) 2551 | -5/Factory | Core integrity fell below 50% 2619 | -5/Factory | Discovered new exit (range 12) 2624 | -5/Factory | Entered another Factory area 2624 | -4/Factory | Evolved 2 slots: Propulsion x1, Utility x1 2633 | -4/Factory | Spotted B-86 Titan 2745 | -4/Factory | Discovered new exit (range 3) 2747 | -4/Factory | Entered Upper Caves 2749 | -4/Upper Caves | Attracted the attention of an 0b10 checkpoint 2765 | -4/Upper Caves | Encountered a Warlord checkpoint 2776 | -4/Upper Caves | Learned Research emergency access door positions 2778 | -4/Upper Caves | Learned 4 Research zone layouts 2790 | -4/Upper Caves | A Derelict revealed a hidden shortcut to "reach the base" 2790 | -4/Upper Caves | Entered Warlord 2845 | -4/Warlord | Met Warlord 2870 | -4/Warlord | Warlord's base attacked by MAIN.C 3168 | -4/Warlord | Lost 6 allies 3175 | -4/Warlord | Warlord forces counterattacked 3230 | -4/Warlord | Spotted Striker 3270 | -4/Warlord | Lost 12 allies 3366 | -4/Warlord | Found Prototype Special Weapon 3367 | -4/Warlord | Identified RU-N14's Throwing Claymores v3 3370 | -4/Warlord | Found RU-N14's Throwing Claymores v3 3388 | -4/Warlord | Build established: Scavenger-Gunner 3545 | -4/Warlord | Warlord base infiltrated, sounded retreat 3752 | -4/Warlord | Build established: Scavenger-Tank 3844 | -4/Warlord | Destroyed 7 combat bots 3896 | -4/Warlord | Spotted Striker 3957 | -4/Warlord | Spotted Executioner 3983 | -4/Warlord | Spotted Executioner 4013 | -4/Warlord | Core integrity fell below 50% 4013 | -4/Warlord | Released all parts (5) 4017 | -4/Warlord | Core integrity fell below 20% 4018 | -4/Warlord | Destroyed by Executioner with Helical Railgun Last Messages --------------- Flexi-carbon Leg destroyed. Arm. Leg destroyed. [Achievement: Hunted] Neutrino Core destroyed. Biometal Leg destroyed. Penetrated by Slug. Adv. Thermal Shield destroyed. Penetrated by Slug. Backup Laser III destroyed. Released Imp. Focal Shield. Released Imp. Targeting Computer. Released Adv. Transmission Jammer. Released Adv. Heat Sink. Released RU-N14's Throwing Claymores v3. Penetrated by Slug. Slug penetrates Earth. Slug penetrates X-77 Beamer. Slug penetrates Blast Doors. S-27 Virus destroyed. Slug penetrates Earth. Map ----- +----------------------------------------------------+ | ## #?????????????????????????? | | ## #?????????????????????????? | | #?????????????????????????? | | ########## ####?????????????????????????? | | #############?## ##????????????????????????????? | | # # #?????????????????????????????? | | """"" # + #?????????????????????????????? | | """" # # #?????????????????????????????? | | """" # # #?????????????????????????????? | | # # #?????????????????????????????? | | # + #???????????????????????????### | | ""############## #???????????????????????? ?? | | #?????????#??# #????????????????????????? ### | | #??????"""""?# g "?????????????????????????? | | ##????#"""X" ; g ;##????""??????????????????# | | #????#"" ;g #???#""#?????????????????# | | ##????#?""X" gx #####""#??????????????????# | | ###?## ?""""#=[! # ##""#???##???#??????????# | | # ### ###?####%!g * ###""####;### #???????????# | | # ### gx*%[ / *"" = ;;#;## ### ??? | | = # # ## *%*=! ""= = / =" #??? | | # # # ## *= % "" [ [%!! ##? | | *g*=%= % = !!!=! # | | [ [ %!!!%! [%!!%*= % | | %=[ ] =!x%%% != !=!%*%% %! | | = gg=!% =@%* %=%=!= [ | | %! ! / [ !"" !* *= ! # | | ; =%gx "" [=== % " ##### | | #!!! ! "" * ;#; # #???# | | # # # ###;|; ;## ##;"" ##?#####???# | | ## ## # ????# ## g " ##;""# ### ##?????????? | | ## ?#"###???#"## "## ##""###??????????????? # | | ?# ?## ????? ## ##???#?""#????????????????? ## | | #####? ????? ## #??????""#???????????????? ?? | | #? ???? # ??????""????????????????? ?? | | #?? ??? ! # #???????????????????????# #?? | | #?? ??[ ! + #???????????????????????# ??? | | % #?? ??[ ! # #????????????????????????? ??? | | X#??? # #????????????????????????????? | | """##???? ###+###????????????????????????????? | | ???????? ???????????????????????????????????? | | ????????####+#???????????????????????????????????? | | ?????????????????????????????????????????????????? | | ?????????????????????????????????????????????????? | | ?????????????????????????????????????????????????? | | ?????????????????????????????????????????????????? | | ?????????????????????????????????????????????????? | | ?????????????????????????????????????????????????? | | ?????????????????????????????????????????????????? | | ?????????????????????????????????????????????????? | +----------------------------------------------------+ Best States ------------- Heat Dissipation 138 Energy Generation 25 Energy Capacity 315 Matter Stores 300 Matter Capacity 300 Sight Range 18 Robot Scan Range 14 Terrain Scan Range 16 Terrain Scan Density 10 Jamming Range 16 Armor Coverage 675 Resistance: KI 25 Resistance: TH 30 Melee Speed Boost 20 Evasion (%) 62 Targeting Accuracy 6 Offensive Hacking 10 Item Schematics ----------------- None Robot Schematics ------------------ None Fabricated ------------ Nothing Alien Tech Used ----------------- None Achievements -------------- A Powerful Ally? GoHome() Hunted Let's See Who's Tougher Challenges ------------ None Game ------ Seed AlphaExplosiveReplicator Manual? 0 Play Time 01:02:50 Cumulative 10.0 hours Start 2024.11.13 @ 21:57:33 End 2024.11.14 @ 01:04:28 Sessions 3 Manual Loads 0 Difficulty Rogue Special Mode None Game No. 8 Rogue 8 Adventurer 0 Explorer 0 Win Type - Total 0 Types 0/0/0/0/0/0/0/0/0 Lore% 4 Gallery% 17 Achievement% 17 Wizard Run 0 Options --------- Layout 1 ASCII 0 Keyboard 0 Movement Mouse Keybinds 0 Fullscreen 2 Font 32/SmallcapsGlow Map View 77x35 Zoom Use 6% Tactical HUD 0 Map Filters NONE Filters NONE Steam 1 RUN: 722be2f3-ce0d-4ba5-ba40-c4460d612e7d